bitfinex-derivatives/quotes_BTCF0:USTF0_20260119
["timestamp","ask_amount","ask_price","bid_price","bid_amount"]
[1768811401894,0.02410069,93002.0,92975.0,0.010761]
[1768811402097,0.02410069,93001.0,92973.0,0.00992536]
[1768811402298,0.02410069,93000.0,92973.0,0.00992536]
[1768811402498,0.010758,93002.0,92969.0,0.00236639]
[1768811402499,0.02410069,92999.0,92969.0,0.00236639]
[1768811402700,0.010759,92993.0,92972.0,0.010761]
[1768811402894,0.02410069,92992.0,92972.0,0.010761]
[1768811403094,0.02410069,92991.0,92969.0,0.00236639]
[1768811403297,0.02169195,92990.0,92973.0,0.010761]
[1768811403501,8.26e-05,92990.0,92969.0,0.01312839]
[1768811403694,8.26e-05,92990.0,92974.0,0.010761]
[1768811403894,8.26e-05,92990.0,92969.0,0.00236639]
[1768811404197,0.01076,92988.0,92969.0,0.00236639]
[1768811404502,0.01076,92986.0,92969.0,0.00236639]
[1768811404691,0.0968,92987.0,92969.0,0.00236639]
[1768811405702,0.01076,92983.0,92969.0,0.00236639]
[1768811406302,0.01076,92981.0,92969.0,0.00236639]
[1768811406504,0.0001082,92980.0,92969.0,0.00236639]
[1768811406701,0.010761,92979.0,92969.0,0.00236639]
[1768811407001,0.010761,92976.0,92969.0,0.00236639]
[1768811407207,0.09684,92976.0,92924.0,0.00236753]
[1768811407399,0.09684,92976.0,92947.0,0.010764]
[1768811407400,0.010762,92969.0,92947.0,0.010764]
[1768811407600,0.02064055,92966.0,92942.0,0.010765]
[1768811407806,0.010762,92963.0,92938.0,0.010765]
[1768811408011,0.010763,92960.0,92936.0,0.09684]
[1768811408306,0.01000869,92959.0,92936.0,0.09684]
[1768811408505,0.01000869,92959.0,92937.0,0.010765]
[1768811408713,0.01000869,92959.0,92936.0,0.09684]
[1768811409016,0.010763,92956.0,92936.0,0.09684]
[1768811409309,0.00987855,92950.0,92919.0,0.31836]
[1768811409511,0.00987855,92948.0,92923.0,0.00992536]
[1768811409710,0.00987855,92948.0,92929.0,0.010766]
[1768811410007,0.00946264,92950.0,92928.0,0.00992536]
[1768811410307,0.010764,92948.0,92928.0,0.00992536]
[1768811410509,0.010764,92945.0,92929.0,0.02692102]
[1768811410709,0.010764,92949.0,92930.0,0.09684]
[1768811410909,0.010764,92949.0,92930.0,0.12376102]
[1768811411209,0.010764,92946.0,92928.0,0.00992536]
[1768811411413,0.00010362,92945.0,92929.0,0.09684]
[1768811411610,0.010765,92944.0,92929.0,0.09684]
[1768811411810,0.010765,92944.0,92921.0,0.00992536]
[1768811411811,0.010765,92938.0,92921.0,0.00992536]
[1768811412104,0.00010362,92945.0,92916.0,0.00981991]
[1768811412105,0.010766,92931.0,92916.0,0.00981991]
[1768811412318,0.00933201,92937.0,92917.0,0.09684]
[1768811412512,0.00881412,92936.0,92918.0,0.09684]
[1768811412813,0.00011671,92936.0,92922.0,0.01974527]
[1768811413014,0.010765,92944.0,92927.0,0.00992536]
[1768811413497,0.09684,92957.0,92931.0,0.00992536]
[1768811413698,0.010764,92951.0,92932.0,0.00992536]
[1768811413896,0.010764,92951.0,92931.0,0.09684]
[1768811413897,0.010764,92951.0,92934.0,0.00992536]
[1768811414108,8.571e-05,92950.0,92934.0,0.00992536]
[1768811414309,0.01084971,92950.0,92934.0,0.00992536]
[1768811414705,8.571e-05,92950.0,92934.0,0.00992536]
[1768811414902,8.571e-05,92950.0,92931.0,0.09684]
[1768811415202,8.571e-05,92950.0,92936.0,0.010765]
[1768811415407,0.010762,92970.0,92947.0,0.02692102]
[1768811415602,0.00997918,92976.0,92948.0,0.09684]
[1768811415912,0.010761,92975.0,92956.0,0.010763]
[1768811416203,0.09684,92978.0,92952.0,0.010764]
[1768811416411,0.010761,92972.0,92953.0,0.02692102]
[1768811416601,0.010761,92972.0,92950.0,0.03768502]
[1768811416803,0.010761,92972.0,92955.0,0.02692102]
[1768811417001,5.577e-05,92977.0,92955.0,0.00992536]
[1768811417196,5.577e-05,92977.0,92961.0,0.01974527]
[1768811417399,5.577e-05,92977.0,92963.0,0.00992536]
[1768811417904,5.577e-05,92977.0,92964.0,0.02692102]
[1768811418099,5.577e-05,92977.0,92964.0,0.03684638]
[1768811418304,5.577e-05,92977.0,92969.0,0.02692102]
[1768811418608,0.00987855,92993.0,92969.0,0.02692102]
[1768811418609,0.01076,92988.0,92970.0,0.00992536]
[1768811418914,0.010759,92989.0,92974.0,0.00992536]
[1768811419214,0.01076,92986.0,92975.0,0.02692102]
[1768811419518,0.00839666,92986.0,92977.0,0.02692102]
[1768811419907,0.010759,92990.0,92979.0,0.02692102]
[1768811420108,0.010759,92990.0,92974.0,0.00992536]
[1768811420313,0.010759,92990.0,92975.0,0.02692102]
[1768811420502,0.010759,92994.0,92975.0,0.02692102]
[1768811420701,0.133638,92999.0,92977.0,0.00992536]
[1768811420917,0.133638,92999.0,92982.0,0.00992536]
[1768811420918,0.026,92999.0,92982.0,0.00992536]
[1768811421217,0.026,92999.0,92987.0,0.02692102]
[1768811421510,0.010758,93005.0,92988.0,0.09688]
[1768811421715,0.010758,93005.0,92988.0,0.12380102]
[1768811422110,0.010758,93005.0,92992.0,0.02692102]
[1768811422303,0.010758,93005.0,92993.0,0.00992536]
[1768811422510,0.00941221,93008.0,92990.0,0.09684]
[1768811422710,0.00989387,92996.0,92981.0,0.09684]
[1768811422911,0.010759,92989.0,92981.0,0.09684]
[1768811423417,0.010759,92993.0,92971.0,0.010761]
[1768811423716,0.010759,92993.0,92972.0,0.09684]
[1768811424017,0.010758,92997.0,92975.0,0.00935295]
[1768811425110,0.010758,92997.0,92975.0,0.00989933]
[1768811425317,0.00123,92996.0,92978.0,0.02011395]
[1768811425615,0.010759,92992.0,92979.0,0.00935295]
[1768811425811,0.01076,92986.0,92972.0,0.10619295]
[1768811426018,0.01076,92986.0,92972.0,0.00935295]
[1768811426207,0.01076,92986.0,92973.0,0.09684]
[1768811426406,0.010759,92990.0,92973.0,0.09684]
[1768811427015,0.011989,92996.0,92974.0,0.00935295]
[1768811427408,0.011989,92996.0,92975.0,0.10619295]
[1768811427610,0.00123,92996.0,92977.0,0.00935295]
[1768811427811,0.00123,92996.0,92977.0,0.01925228]
[1768811428013,0.00123,92996.0,92978.0,0.00935295]
[1768811428211,0.00123,92996.0,92980.0,0.00935295]
[1768811428813,0.09684,93003.0,92986.0,0.00935295]
[1768811429018,0.09684,93003.0,92987.0,0.00989933]
[1768811429222,0.03468708,93002.0,92988.0,0.00935295]
[1768811429519,0.010758,93002.0,92988.0,0.00935295]
[1768811430319,0.010759,92993.0,92979.0,0.00935295]
[1768811430529,0.01930608,92998.0,92970.0,0.00935295]
[1768811430822,0.01930608,92998.0,92971.0,0.10619295]
[1768811431023,0.010759,92992.0,92972.0,0.02011395]
[1768811431208,0.010759,92995.0,92976.0,0.00989933]
[1768811431413,0.010758,92998.0,92981.0,0.00935295]
[1768811431613,0.010758,92998.0,92984.0,0.00935295]
[1768811432022,0.01930608,93009.0,92984.0,0.00935295]
[1768811432218,0.02393913,93008.0,92986.0,0.00935295]
[1768811432419,0.02393913,93007.0,92986.0,0.00935295]
[1768811432620,0.02393913,93006.0,92988.0,0.00989933]
[1768811432820,0.02393913,93005.0,92989.0,0.00935295]
[1768811433118,0.02393913,93004.0,92989.0,0.00935295]
[1768811433318,0.02393913,93003.0,92989.0,0.00935295]
[1768811433512,0.02393913,93002.0,92989.0,0.00935295]
[1768811433718,0.03469713,93001.0,92989.0,0.00935295]
[1768811433917,0.02393913,93000.0,92989.0,0.00935295]
[1768811434117,0.010758,93002.0,92989.0,0.00935295]
[1768811434324,0.010757,93011.0,92994.0,0.00935295]
[1768811434825,0.010757,93008.0,92994.0,0.00935295]
[1768811435516,0.09684,93012.0,92996.0,0.010758]
[1768811435719,0.107597,93012.0,92994.0,0.00935295]
[1768811436623,0.107597,93012.0,92994.0,0.00951432]
[1768811436925,0.10673387,93012.0,92994.0,0.00016137]
[1768811437116,0.00989387,93011.0,92994.0,0.00016137]
[1768811437625,0.010757,93008.0,92994.0,0.00016137]
[1768811437819,0.09684,93012.0,92994.0,0.00016137]
[1768811438017,0.010758,93003.0,92994.0,0.00016137]
[1768811438524,0.00989387,93006.0,92994.0,0.00016137]
[1768811438924,0.010758,93005.0,92994.0,0.00016137]
[1768811441527,0.00989387,93006.0,92994.0,3.7e-07]
[1768811442027,0.010758,93002.0,92994.0,3.7e-07]
[1768811442217,0.010758,92999.0,92994.0,3.7e-07]
[1768811442528,0.010758,93001.0,92994.0,3.7e-07]
[1768811443115,0.010757,93006.0,92994.0,3.7e-07]
[1768811443926,0.01091837,93009.0,92994.0,3.7e-07]
[1768811444126,0.010757,93007.0,92994.0,3.7e-07]
[1768811444318,0.00016137,93009.0,92994.0,3.7e-07]
[1768811444518,0.00995298,93009.0,92994.0,3.7e-07]
[1768811445624,0.010758,93000.0,92994.0,3.7e-07]
[1768811445927,0.010758,93001.0,92994.0,3.7e-07]
[1768811446125,0.010758,93004.0,92994.0,3.7e-07]
[1768811446428,0.02386446,93003.0,92994.0,3.7e-07]
[1768811446626,0.03462246,93002.0,92994.0,3.7e-07]
[1768811446827,0.02386446,93001.0,92994.0,3.7e-07]
[1768811447027,0.00995298,93009.0,92994.0,3.7e-07]
[1768811447227,0.02387621,93008.0,92994.0,3.7e-07]
[1768811447427,0.02387621,93007.0,92994.0,3.7e-07]
[1768811447617,0.02387621,93006.0,92994.0,3.7e-07]
[1768811447817,0.02387621,93005.0,92994.0,3.7e-07]
[1768811448018,0.02387621,93004.0,92994.0,3.7e-07]
[1768811448329,0.010759,92997.0,92994.0,3.7e-07]
[1768811450515,0.00839504,92997.0,92994.0,3.7e-07]
[1768811451123,0.010759,92992.0,92986.0,0.09684]
[1768811451429,0.010759,92995.0,92986.0,0.09684]
[1768811452732,0.010758,92998.0,92987.0,0.009087]
[1768811453227,0.010758,93001.0,92987.0,0.009087]
[1768811453532,0.010758,92998.0,92987.0,0.009087]
[1768811454131,0.0099965,93008.0,92987.0,0.009087]
[1768811454326,0.02390041,93007.0,92988.0,0.010759]
[1768811454526,0.02390041,93006.0,92990.0,0.009087]
[1768811454821,0.0099965,93001.0,92984.0,0.002366]
[1768811455028,0.010759,92993.0,92985.0,0.09684]
[1768811455432,0.010759,92996.0,92985.0,0.09684]
[1768811455834,0.010759,92994.0,92985.0,0.09684]
[1768811456033,0.010759,92997.0,92985.0,0.09684]
[1768811456928,0.010759,92995.0,92985.0,0.09684]
[1768811457132,0.010758,92998.0,92985.0,0.105927]
[1768811457324,0.010758,93002.0,92988.0,0.15520841]
[1768811457520,0.02390197,93001.0,92988.0,0.16429541]
[1768811457722,0.02390197,93000.0,92991.0,0.010759]
[1768811457928,0.0099965,93012.0,92992.0,0.009087]
[1768811458129,0.010757,93006.0,92993.0,0.009087]
[1768811458332,0.02390096,93005.0,92994.0,0.009087]
[1768811458537,0.02390096,93004.0,92990.0,0.14444941]
[1768811458734,0.0215375,93003.0,92990.0,0.14444941]
[1768811458934,0.010757,93007.0,92990.0,0.14444941]
[1768811459139,0.00016137,93009.0,92991.0,0.009087]
[1768811459438,0.00016137,93009.0,92985.0,0.09684]
[1768811459439,0.0099965,93025.0,93005.0,0.009087]
[1768811459836,0.0099965,93023.0,93005.0,0.009087]
[1768811460026,0.010757,93013.0,92999.0,0.15379169]
[1768811460230,0.010756,93016.0,92999.0,0.16287869]
[1768811460430,0.010757,93014.0,93000.0,0.009087]
[1768811460643,0.010756,93017.0,93000.0,0.009087]
[1768811461238,0.01965866,93008.0,92989.0,0.00236588]
[1768811461432,0.15444591,93000.0,92989.0,8.8e-07]
[1768811461628,0.010758,92997.0,92989.0,8.8e-07]
[1768811461834,0.01965866,93004.0,92989.0,8.8e-07]
[1768811462336,0.010759,92997.0,92989.0,8.8e-07]
[1768811462540,0.010758,93000.0,92989.0,8.8e-07]
[1768811462742,0.0099965,92992.0,92969.0,0.01312839]
[1768811462938,0.01076,92986.0,92970.0,0.24128941]
[1768811464542,0.01076,92984.0,92970.0,0.24128941]
[1768811464850,0.01076,92980.0,92969.0,0.00236639]
[1768811465047,0.01076,92980.0,92970.0,0.09684]
[1768811466238,0.01092128,92984.0,92970.0,0.09684]
[1768811466736,0.00839451,92982.0,92970.0,0.09684]
[1768811468138,0.0085559,92985.0,92970.0,0.09684]
[1768811468443,0.01076,92988.0,92970.0,0.09684]
[1768811468741,0.01076,92983.0,92970.0,0.09684]
[1768811469143,0.01076,92983.0,92969.0,0.00236639]
[1768811469442,0.01076,92983.0,92969.0,0.09920639]
[1768811470034,0.010761,92979.0,92969.0,0.00236639]
[1768811470234,0.010762,92971.0,92964.0,0.00236651]
[1768811470544,0.010762,92971.0,92960.0,0.00012798]
[1768811471836,0.01965866,92972.0,92960.0,9.8e-07]
[1768811472041,0.0099965,92971.0,92960.0,9.8e-07]
[1768811472739,0.00010853,92970.0,92960.0,9.8e-07]
[1768811472949,0.01976719,92970.0,92960.0,9.8e-07]
[1768811473145,0.0099965,92966.0,92952.0,0.09684]
[1768811474642,0.010762,92965.0,92949.0,0.0023669]
[1768811474837,0.010762,92963.0,92949.0,0.0023669]
[1768811475043,0.00839702,92963.0,92949.0,0.0023669]
[1768811476344,0.00603215,92963.0,92949.0,0.0023669]
[1768811476549,0.00016137,92965.0,92949.0,0.0023669]
[1768811477247,0.010762,92964.0,92949.0,0.0023669]
[1768811479345,0.00016137,92965.0,92950.0,0.01842928]
[1768811479646,0.00016137,92965.0,92951.0,0.01842928]
[1768811479850,0.00016137,92965.0,92952.0,0.01842928]
[1768811480050,0.00016137,92965.0,92953.0,0.01842928]
[1768811480350,0.00016137,92965.0,92954.0,0.009087]
[1768811480552,0.00016137,92965.0,92954.0,0.01985]
[1768811481149,0.09684,92978.0,92963.0,0.010762]
[1768811481447,0.09684,92978.0,92960.0,0.01842928]
[1768811481448,0.09684,92984.0,92965.0,0.01842928]
[1768811481638,0.03443714,92983.0,92967.0,0.010762]
[1768811481844,0.01076,92981.0,92965.0,0.01842928]
[1768811482244,0.010761,92979.0,92965.0,0.009087]
[1768811483046,0.01076,92982.0,92967.0,0.010762]
[1768811483549,0.01076,92980.0,92963.0,0.02028668]
[1768811483943,0.01076,92980.0,92963.0,0.02995795]
[1768811484342,0.00839564,92980.0,92963.0,0.02995795]
[1768811484943,0.00839564,92980.0,92965.0,0.010762]
[1768811485850,0.00906403,92999.0,92978.0,0.01919595]
[1768811486058,0.00997129,93001.0,92962.0,0.010762]
[1768811486059,0.010759,92992.0,92980.0,0.00952468]
[1768811486550,0.010759,92995.0,92977.0,0.00016137]
[1768811486739,0.03274267,92994.0,92977.0,0.00016137]
[1768811486944,0.00906403,92994.0,92977.0,0.00016137]
[1768811487144,0.01076,92986.0,92977.0,0.00016137]
[1768811488147,0.00906403,92994.0,92977.0,0.00016137]
[1768811488750,0.010759,92995.0,92978.0,0.02043227]
[1768811488945,0.010759,92996.0,92982.0,0.00967127]
[1768811489146,0.01903532,93000.0,92977.0,0.00983264]
[1768811489347,0.09684,93005.0,92977.0,0.00016137]
[1768811489348,0.01076,92987.0,92977.0,0.00016137]
[1768811490050,0.01076,92985.0,92977.0,0.00016137]
[1768811491056,0.010758,93002.0,92977.0,0.00016137]
[1768811491057,0.01076,92988.0,92977.0,0.00016137]
[1768811491357,0.00839705,92988.0,92977.0,0.00016137]
[1768811491558,0.01076,92988.0,92977.0,0.00016137]
[1768811491748,0.010759,92989.0,92977.0,0.00016137]
[1768811493250,0.01076,92986.0,92977.0,0.00016137]
[1768811494059,0.00906403,92990.0,92977.0,0.00016137]
[1768811494459,0.01903532,93003.0,92977.0,0.01935732]
[1768811494659,0.00906403,93001.0,92978.0,0.00967127]
[1768811494868,0.01903532,92997.0,92977.0,0.00016137]
[1768811495053,0.02979432,92989.0,92977.0,0.00016137]
[1768811495559,0.01076,92987.0,92977.0,0.00016137]
[1768811495952,0.01903532,92989.0,92977.0,0.00016137]
[1768811496260,0.00906403,92989.0,92977.0,0.00016137]
[1768811496758,0.01076,92988.0,92977.0,0.00016137]
[1768811497765,0.01903532,92989.0,92977.0,0.00016137]
[1768811497948,0.00906403,92989.0,92977.0,0.00016137]
[1768811499263,0.00906403,92989.0,92976.0,0.00855535]
[1768811499462,0.00906403,92989.0,92977.0,0.010761]
[1768811499766,0.00016137,92992.0,92973.0,0.01834023]
[1768811500063,0.00016137,92992.0,92983.0,0.01076]
[1768811500466,0.01905813,93010.0,92986.0,0.0199281]
[1768811500665,0.010758,93003.0,92987.0,0.0091681]
[1768811500959,0.010759,92990.0,92984.0,0.09684]
[1768811501160,0.010759,92990.0,92967.0,0.01834023]
[1768811501466,0.00983455,92992.0,92978.0,0.010761]
[1768811501659,0.09684,93013.0,92985.0,0.01076]
[1768811501859,0.010758,93001.0,92985.0,0.01076]
[1768811502064,0.010758,93004.0,92987.0,0.01076]
[1768811502463,0.010757,93012.0,92990.0,0.00917213]
[1768811502666,0.12054631,93011.0,92995.0,0.010759]
[1768811502864,0.03446331,93010.0,92992.0,0.00917213]
[1768811503062,0.010757,93008.0,92993.0,0.010759]
[1768811503264,0.107597,93011.0,92993.0,0.010759]
[1768811503562,0.09684,93013.0,92994.0,0.00917213]
[1768811503861,0.010756,93018.0,93003.0,0.010758]
[1768811504068,0.010756,93018.0,92995.0,0.00917213]
[1768811504069,0.02369837,93017.0,93000.0,0.010758]
[1768811504263,0.02369837,93016.0,93000.0,0.010758]
[1768811504467,0.02369837,93015.0,93000.0,0.010758]
[1768811504668,0.02369837,93014.0,93000.0,0.010758]
[1768811504969,0.010756,93018.0,93000.0,0.010758]
[1768811505566,0.01905813,93019.0,92999.0,0.010758]
[1768811505867,0.03291026,93018.0,92999.0,0.010758]
[1768811506067,0.010756,93016.0,92999.0,0.010758]
[1768811506267,0.010756,93016.0,93001.0,0.010758]
[1768811506769,0.00922358,93018.0,93004.0,0.010758]
[1768811507068,0.00922358,93018.0,93001.0,0.010758]
[1768811507263,0.010756,93017.0,93001.0,0.010758]
[1768811508261,0.01905813,93017.0,93000.0,0.00016128]
[1768811508460,0.010757,93013.0,93000.0,0.00016128]
[1768811509059,0.01905813,93015.0,93000.0,0.00016128]
[1768811509272,0.00922358,93008.0,92994.0,0.107599]
[1768811509474,0.00922358,93008.0,92996.0,0.010759]
[1768811510584,0.00922358,93008.0,92998.0,0.010758]
[1768811510984,0.00922358,93008.0,92994.0,0.09684]
[1768811512582,0.010757,93011.0,92996.0,0.010759]
[1768811512887,0.00922358,93012.0,92996.0,0.010759]
[1768811513286,0.00922358,93012.0,92994.0,0.09684]
[1768811514374,0.00922358,93012.0,92998.0,0.010758]
[1768811514688,0.00922358,93012.0,92994.0,0.09684]
[1768811514996,0.00016128,93016.0,92995.0,0.01920121]
[1768811515290,0.010757,93013.0,92999.0,0.0099115]
[1768811515597,0.00839253,93013.0,92998.0,0.010758]
[1768811516092,0.0236959,93012.0,92998.0,0.010758]
[1768811516388,0.010757,93011.0,92997.0,0.010758]
[1768811516776,0.02056994,93014.0,92997.0,0.010758]
[1768811517084,0.02369591,93013.0,92997.0,0.010758]
[1768811517383,0.02369591,93012.0,92999.0,0.010758]
[1768811517683,0.00016128,93016.0,93002.0,0.010758]
[1768811517890,0.02369674,93015.0,93004.0,0.010758]
[1768811518192,0.00016128,93016.0,93004.0,0.010758]
[1768811518484,0.02369682,93015.0,93004.0,0.010758]
[1768811518688,0.00016128,93016.0,93004.0,0.010758]
[1768811518893,0.02369682,93015.0,93004.0,0.010758]
[1768811519090,0.00016128,93016.0,93005.0,0.010757]
[1768811519294,0.02369645,93015.0,93005.0,0.0099115]
[1768811519594,0.02369645,93015.0,92994.0,0.09684]
[1768811519595,0.09684,93023.0,93009.0,0.0206685]
[1768811519794,0.02369619,93022.0,93009.0,0.0206685]
[1768811519990,0.02369619,93021.0,93009.0,0.010757]
[1768811520186,0.02369619,93020.0,93003.0,0.01920121]
[1768811520387,0.02369619,93019.0,93003.0,0.01920121]
[1768811520588,0.02369619,93018.0,93003.0,0.01920121]
[1768811520891,0.010756,93022.0,93007.0,0.010757]
[1768811521094,6.1e-07,93021.0,93008.0,0.0099115]
[1768811521392,0.00981394,93030.0,93007.0,0.107597]
[1768811521589,0.00981394,93021.0,93009.0,0.010757]
[1768811521794,0.010755,93027.0,93012.0,0.010757]
[1768811522185,0.010755,93030.0,93012.0,0.010757]
[1768811522695,0.00981394,93031.0,93014.0,0.010756]
[1768811523400,0.02056894,93031.0,93014.0,0.010756]
[1768811523892,0.00981394,93031.0,93010.0,0.0206685]
[1768811524088,0.010755,93025.0,93010.0,0.0099115]
[1768811524783,0.010755,93029.0,93013.0,0.010757]
[1768811525989,0.00981394,93031.0,93013.0,0.010757]
[1768811526394,0.00981394,93031.0,93011.0,0.107597]
[1768811526593,0.00981394,93030.0,93011.0,0.09684]
[1768811526894,0.00916066,93029.0,93011.0,0.09684]
[1768811527094,0.010755,93026.0,93011.0,0.09684]
[1768811527797,0.010755,93030.0,93012.0,0.010757]
[1768811528396,0.010755,93030.0,93014.0,0.010756]
[1768811529092,0.010754,93033.0,93014.0,0.010756]
[1768811529397,0.0968,93039.0,93019.0,0.0099115]
[1768811529595,0.0968,93039.0,93019.0,0.01920121]
[1768811529897,0.010755,93028.0,93013.0,0.010757]
[1768811530089,0.010755,93031.0,93013.0,0.010757]
[1768811530396,0.010755,93031.0,93020.0,0.00016128]
[1768811530602,0.010755,93029.0,93020.0,0.00016128]
[1768811532704,0.010754,93032.0,93020.0,0.00016128]
[1768811533197,0.02353975,93031.0,93020.0,0.00016128]
[1768811533495,0.02353975,93030.0,93020.0,0.00016128]
[1768811533690,0.02353975,93029.0,93020.0,0.00016128]
[1768811533897,0.02353975,93028.0,93020.0,0.00016128]
[1768811534094,0.010754,93033.0,93020.0,0.00016128]
[1768811534299,0.00916066,93036.0,93020.0,0.00016128]
[1768811534300,0.010755,93031.0,93020.0,0.00016128]
[1768811534498,0.02353914,93030.0,93020.0,0.00016128]
[1768811534694,0.02353914,93029.0,93020.0,0.00016128]
[1768811534892,0.010754,93035.0,93020.0,0.01007278]
[1768811535100,0.010754,93035.0,93021.0,0.010756]
[1768811536093,0.15417435,93040.0,93020.0,0.01007278]
[1768811536597,0.00981394,93040.0,93020.0,0.02361168]
[1768811536799,0.15417435,93040.0,93020.0,0.02361168]
[1768811537201,0.010754,93036.0,93022.0,0.010756]
[1768811537500,0.010754,93039.0,93022.0,0.010756]
[1768811538602,0.010754,93035.0,93020.0,0.00016128]
[1768811538903,0.010754,93033.0,93020.0,0.14452169]
[1768811539097,0.010755,93031.0,93020.0,0.00016128]
[1768811539298,0.00981394,93044.0,93021.0,0.01304929]
[1768811539500,0.010754,93032.0,93020.0,0.00016128]
[1768811539699,0.00981394,93036.0,93020.0,0.14452169]
[1768811539903,0.00744998,93036.0,93020.0,0.00016128]
[1768811540304,0.010755,93029.0,93020.0,0.00016128]
[1768811540504,0.00744998,93036.0,93020.0,0.00016128]
[1768811540505,0.01661064,93036.0,93020.0,0.00016128]
[1768811540698,0.010755,93029.0,93020.0,0.00016128]
[1768811541407,0.010754,93033.0,93020.0,0.00016128]
[1768811542207,0.010754,93035.0,93020.0,0.00016128]
[1768811542707,0.010754,93035.0,93020.0,0.14452169]
[1768811542908,0.010754,93035.0,93020.0,0.00016128]
[1768811543309,0.14436041,93040.0,93020.0,0.01091728]
[1768811543310,0.010754,93038.0,93020.0,0.01091728]
[1768811543710,0.010754,93038.0,93020.0,0.22091728]
[1768811543911,0.010754,93036.0,93020.0,0.22619868]
[1768811544108,0.010754,93033.0,93020.0,0.21544268]
[1768811544507,0.010754,93037.0,93020.0,0.21544268]
[1768811544707,0.010754,93037.0,93021.0,0.010756]
[1768811545209,0.00950495,93052.0,93032.0,0.0052814]
[1768811545508,0.00950495,93050.0,93030.0,0.15896078]
[1768811545716,0.01871367,93048.0,93030.0,0.14436041]
[1768811545913,0.010753,93042.0,93030.0,0.14436041]
[1768811546414,0.00920872,93047.0,93030.0,0.14436041]
[1768811546617,0.010753,93041.0,93026.0,0.00578466]
[1768811546816,0.010753,93043.0,93026.0,0.00578466]
[1768811547111,0.02343751,93042.0,93026.0,0.00578466]
[1768811547307,0.02343751,93041.0,93026.0,0.00578466]
[1768811547507,0.02343751,93040.0,93026.0,0.00578466]
[1768811547808,0.010753,93046.0,93031.0,0.00931897]
[1768811548113,0.010753,93046.0,93028.0,0.01646511]
[1768811548303,0.010753,93046.0,93030.0,0.16082552]
[1768811548509,0.16461736,93050.0,93030.0,0.15007052]
[1768811548708,0.00950495,93056.0,93040.0,0.14436041]
[1768811548907,0.00950495,93060.0,93040.0,0.14436041]
[1768811549108,0.00950495,93058.0,93040.0,0.14436041]
[1768811549308,0.00920872,93057.0,93040.0,0.14436041]
[1768811549512,0.00920872,93056.0,93041.0,0.00016128]
[1768811550121,0.01996072,93056.0,93041.0,0.00016128]
[1768811550416,0.00920872,93056.0,93041.0,0.00016128]
[1768811551309,0.010752,93055.0,93041.0,0.00016128]
[1768811552010,0.00920872,93056.0,93041.0,0.00016128]
[1768811552011,0.00920872,93056.0,93043.0,0.010753]
[1768811552315,0.00920872,93056.0,93041.0,0.00016128]
[1768811552614,0.00920872,93062.0,93046.0,0.14436041]
[1768811552919,0.00920872,93061.0,93050.0,0.14436041]
[1768811553216,0.01995972,93061.0,93043.0,0.010753]
[1768811553518,0.00920872,93049.0,93041.0,0.09696128]
[1768811553713,0.00950495,93050.0,93042.0,0.010753]
[1768811553918,0.00950495,93050.0,93041.0,0.09696128]
[1768811554710,0.00920872,93053.0,93041.0,0.00016128]
[1768811555015,0.01871367,93052.0,93041.0,0.00016128]
[1768811555216,0.00920872,93051.0,93041.0,0.00016128]
[1768811557418,0.00920872,93063.0,93042.0,0.010753]
[1768811557715,0.010751,93061.0,93044.0,0.010753]
[1768811558016,0.01995972,93062.0,93044.0,0.010753]
[1768811558219,0.00920872,93062.0,93050.0,0.14436041]
[1768811558517,0.00950495,93063.0,93050.0,0.14436041]
[1768811558817,0.00950495,93063.0,93047.0,0.010753]
[1768811559018,0.00920872,93066.0,93050.0,0.14436041]
[1768811559214,0.010751,93065.0,93050.0,0.14436041]
[1768811559413,0.00950495,93069.0,93055.0,0.14436041]
[1768811559617,0.00950495,93069.0,93052.0,0.010752]
[1768811559814,0.01075,93067.0,93050.0,0.14436041]
[1768811560014,0.010751,93063.0,93047.0,0.00931897]
[1768811560214,0.02315488,93062.0,93050.0,0.14436041]
[1768811560514,0.00934338,93064.0,93050.0,0.14436041]
[1768811560716,0.01845944,93050.0,93037.0,0.0968]
[1768811560914,0.01845944,93048.0,93037.0,0.107554]
[1768811561820,0.00911606,93048.0,93039.0,0.010753]
[1768811563521,0.00934338,93052.0,93039.0,0.010753]
[1768811563817,6e-08,93051.0,93047.0,0.010753]
[1768811564021,6e-08,93051.0,93043.0,0.010753]
[1768811564222,6e-08,93051.0,93038.0,0.010754]
[1768811564422,0.00934344,93051.0,93038.0,0.010754]
[1768811566019,0.00934338,93058.0,93037.0,0.0968]
[1768811566223,0.00911606,93057.0,93037.0,0.0968]
[1768811566423,0.00934338,93056.0,93037.0,0.0968]
[1768811566719,0.00934338,93056.0,93041.0,0.010753]
[1768811566927,0.14436041,93060.0,93044.0,0.010753]
[1768811567222,0.010751,93063.0,93050.0,0.14436041]
[1768811567427,0.00934338,93064.0,93046.0,0.00947982]
[1768811567616,0.00934338,93063.0,93041.0,0.00808785]
[1768811567923,0.010751,93063.0,93046.0,0.02023282]
[1768811568118,0.010751,93063.0,93046.0,0.00947982]
[1768811568315,0.010751,93061.0,93043.0,0.01950827]
[1768811569237,0.02009438,93063.0,93043.0,0.00875527]
[1768811569615,0.02009438,93063.0,93047.0,0.010753]
[1768811570030,0.00934338,93063.0,93045.0,0.010753]
[1768811570433,0.00934338,93063.0,93047.0,0.010753]
[1768811570624,0.02009438,93063.0,93047.0,0.010753]
[1768811571830,0.02009438,93063.0,93044.0,0.010753]
[1768811572024,0.00934338,93062.0,93046.0,0.010753]
[1768811572232,0.00697992,93061.0,93046.0,0.010753]
[1768811572929,0.00697992,93061.0,93040.0,0.16338178]
[1768811573228,0.00697992,93061.0,93049.0,0.010752]
[1768811573827,0.00697992,93061.0,93053.0,0.010752]
[1768811576738,0.00697992,93061.0,93055.0,0.010752]
[1768811577232,0.00697992,93061.0,93052.0,0.010752]
[1768811577533,0.00697992,93061.0,93054.0,0.010752]
[1768811578430,0.00016118,93066.0,93060.0,0.010751]
[1768811578731,0.03315291,93065.0,93053.0,0.010752]
[1768811578933,0.02321257,93064.0,93052.0,0.010752]
[1768811579130,0.14436041,93062.0,93048.0,0.09692118]
[1768811579434,0.00994034,93061.0,93051.0,0.010752]
[1768811579634,0.00994034,93067.0,93050.0,0.14436041]
[1768811579834,0.02321592,93066.0,93057.0,0.010751]
[1768811580031,0.02321592,93065.0,93057.0,0.010751]
[1768811580231,0.00994034,93067.0,93057.0,0.010751]
[1768811580232,0.02321592,93064.0,93057.0,0.010751]
[1768811580432,0.00994034,93067.0,93057.0,0.010751]
[1768811580740,0.02321861,93066.0,93058.0,0.010751]